bitfinex-derivatives/quotes_BTCF0:USTF0_20240917
["timestamp","ask_amount","ask_price","bid_price","bid_amount"]
[1726547206705,0.33065384,58274.0,58273.0,0.0008]
[1726547207004,0.1857865,58274.0,58273.0,0.0008]
[1726547209808,0.2715835,58274.0,58273.0,0.0008]
[1726547212614,0.1715835,58274.0,58273.0,0.0008]
[1726547212911,0.2715835,58274.0,58273.0,0.0008]
[1726547213211,0.2715835,58274.0,58273.0,0.0007]
[1726547214114,0.31300168,58274.0,58273.0,0.0007]
[1726547218308,0.31299186,58274.0,58273.0,0.0007]
[1726547219212,0.57024131,58274.0,58273.0,0.0007]
[1726547220219,0.41581636,58274.0,58273.0,0.0007]
[1726547220401,0.57024131,58274.0,58273.0,0.0003]
[1726547221018,0.38444431,58274.0,58273.0,0.0003]
[1726547221219,0.33001936,58274.0,58273.0,0.0003]
[1726547221916,0.25472236,58274.0,58267.0,0.085806]
[1726547222120,0.085803,58270.0,58269.0,0.08519175]
[1726547222319,0.085803,58270.0,58269.0,0.1977035]
[1726547227017,0.085803,58270.0,58269.0,0.11251175]
[1726547228422,0.085803,58270.0,58269.0,0.19831575]
[1726547229120,0.17573265,58270.0,58269.0,0.085804]
[1726547229419,0.31298677,58270.0,58269.0,0.085804]
[1726547231124,0.31277607,58270.0,58269.0,0.085804]
[1726547233123,0.12731943,58270.0,58269.0,0.085804]
[1726547234525,0.24741346,58270.0,58269.0,0.085804]
[1726547236025,0.24741421,58270.0,58269.0,0.085804]
[1726547237224,0.085803,58270.0,58269.0,0.17122926]
[1726547238428,0.085803,58270.0,58269.0,0.19825421]
[1726547240823,0.085803,58270.0,58269.0,0.19820618]
[1726547244233,0.17560383,58270.0,58269.0,0.085804]
[1726547245630,0.1755891,58270.0,58269.0,0.085804]
[1726547249628,0.17562462,58270.0,58269.0,0.085804]
[1726547249840,0.23057609,58270.0,58269.0,0.085804]
[1726547250530,0.17582076,58270.0,58269.0,0.085804]
[1726547252337,0.085803,58270.0,58269.0,0.3004508]
[1726547257140,0.0104895,58274.0,58273.0,0.085798]
[1726547257141,0.0005,58274.0,58273.0,0.085798]
[1726547257337,0.0005,58274.0,58273.0,0.5594147]
[1726547257535,0.0005,58274.0,58273.0,0.66186134]
[1726547258337,0.0005,58274.0,58273.0,0.1986147]
[1726547258529,0.447097,58274.0,58273.0,0.1128167]
[1726547258727,0.632894,58274.0,58273.0,0.0004]
[1726547259734,0.0858,58272.0,58271.0,0.0493237]
[1726547260235,0.0862,58272.0,58271.0,0.0493237]
[1726547261742,0.085802,58271.0,58268.0,0.15410227]
[1726547261938,0.1004,58269.0,58268.0,0.15410227]
[1726547263339,0.0004,58269.0,58268.0,0.15410227]
[1726547263539,0.1004,58269.0,58268.0,0.15410227]
[1726547264543,0.186204,58269.0,58268.0,0.15410227]
[1726547266145,0.19639621,58269.0,58268.0,0.15410227]
[1726547267447,0.19639621,58269.0,58268.0,0.085804]
[1726547273251,0.085809,58266.0,58265.0,0.36337438]
[1726547273451,0.186209,58266.0,58265.0,0.36337438]
[1726547274153,0.186209,58266.0,58265.0,0.44918438]
[1726547274356,0.186209,58266.0,58265.0,0.45318438]
[1726547275152,0.186209,58266.0,58265.0,0.09238438]
[1726547275448,0.186209,58266.0,58265.0,0.45318438]
[1726547276045,0.186209,58266.0,58265.0,0.45618438]
[1726547277843,0.186209,58266.0,58265.0,0.3678]
[1726547277844,0.272018,58266.0,58265.0,0.3678]
[1726547278550,0.272018,58266.0,58265.0,0.007]
[1726547285547,0.632818,58266.0,58265.0,0.007]
[1726547287256,0.67389959,58266.0,58265.0,0.007]
[1726547288767,0.31309959,58266.0,58265.0,0.007]
[1726547288958,0.67389959,58266.0,58265.0,0.007]
[1726547290258,0.632818,58266.0,58265.0,0.007]
[1726547291560,0.532818,58266.0,58265.0,0.007]
[1726547291759,0.632818,58266.0,58265.0,0.007]
[1726547291955,0.257457,58259.0,58258.0,0.008]
[1726547292165,0.085831,58251.0,58250.0,0.08939946]
[1726547292361,0.085831,58251.0,58247.0,0.46192]
[1726547292362,0.1004,58251.0,58248.0,0.08539946]
[1726547292556,0.085835,58248.0,58247.0,0.46461521]
[1726547292767,0.186235,58248.0,58247.0,0.36337521]
[1726547292959,0.185835,58248.0,58247.0,0.36337521]
[1726547293156,0.27167,58248.0,58247.0,0.00257521]
[1726547293657,0.24667,58248.0,58247.0,0.00257521]
[1726547294770,0.24667,58248.0,58247.0,0.01657521]
[1726547295570,0.24767,58248.0,58247.0,0.02757521]
[1726547295770,0.24767,58248.0,58247.0,0.025]
[1726547295963,0.60847,58248.0,58247.0,0.025]
[1726547296860,0.61839566,58248.0,58247.0,0.025]
[1726547297260,0.53256066,58248.0,58247.0,0.025]
[1726547300670,0.17176066,58248.0,58247.0,0.025]
[1726547300870,0.53256066,58248.0,58247.0,0.025]
[1726547301762,0.17176066,58248.0,58247.0,0.025]
[1726547301963,0.53256066,58248.0,58247.0,0.025]
[1726547302575,0.61839566,58248.0,58247.0,0.025]
[1726547316604,0.61839566,58248.0,58247.0,0.0179]
[1726547319703,0.61839566,58248.0,58247.0,0.10329946]
[1726547319908,0.61839566,58248.0,58247.0,0.0179]
[1726547322909,0.25759566,58248.0,58247.0,0.0179]
[1726547325609,0.360401,58248.0,58247.0,0.0179]
[1726547326508,0.721201,58248.0,58247.0,0.0179]
[1726547327508,0.61839566,58248.0,58247.0,0.23296062]
[1726547329305,0.25759566,58248.0,58247.0,0.23296062]
[1726547329614,0.61839566,58248.0,58247.0,0.23296062]
[1726547330205,0.61839566,58248.0,58247.0,0.22566062]
[1726547331409,0.61839566,58248.0,58247.0,0.22565652]
[1726547332008,0.25759566,58248.0,58247.0,0.22565652]
[1726547332307,0.61839566,58248.0,58247.0,0.22565652]
[1726547332704,0.25759566,58248.0,58247.0,0.48397716]
[1726547332905,0.28259566,58248.0,58247.0,0.257243]
[1726547333307,0.28259566,58248.0,58247.0,0.12317716]
[1726547333620,0.28259566,58248.0,58247.0,0.25666355]
[1726547334520,0.28259566,58248.0,58247.0,0.12317716]
[1726547334813,0.19676066,58248.0,58247.0,0.12317716]
[1726547335312,0.55756066,58248.0,58247.0,0.22583773]
[1726547336811,0.45756066,58248.0,58247.0,0.22583773]
[1726547337011,0.55756066,58248.0,58247.0,0.22583773]
[1726547340317,0.001,58248.0,58247.0,0.3424096]
[1726547340507,0.001,58248.0,58247.0,0.8574496]
[1726547340713,0.0004,58251.0,58250.0,0.085832]
[1726547340911,0.0004,58251.0,58250.0,0.43110628]
[1726547341219,0.0004,58251.0,58250.0,1.54610628]
[1726547341414,0.0004,58251.0,58250.0,1.90690628]
[1726547341716,0.0004,58251.0,58250.0,1.80690628]
[1726547341921,0.0004,58251.0,58250.0,1.81790628]
[1726547342116,0.0014,58251.0,58250.0,1.81790628]
[1726547342518,0.0014,58251.0,58250.0,1.573032]
[1726547343613,0.0024,58251.0,58250.0,1.573032]
[1726547343832,0.0024,58251.0,58250.0,0.983116]
[1726547344018,0.0024,58251.0,58250.0,1.583116]
[1726547344419,0.0024,58251.0,58250.0,1.683116]
[1726547347217,0.0024,58251.0,58250.0,1.083116]
[1726547348620,0.0024,58251.0,58250.0,0.568116]
[1726547348821,0.0024,58251.0,58250.0,1.083116]
[1726547349822,0.0024,58251.0,58250.0,0.568116]
[1726547350020,0.0024,58251.0,58250.0,1.083116]
[1726547350223,0.0024,58251.0,58250.0,0.568116]
[1726547350623,0.0024,58251.0,58250.0,0.67946892]
[1726547351835,0.0024,58251.0,58250.0,0.57946892]
[1726547352925,0.0024,58251.0,58250.0,0.67946892]
[1726547357632,0.0024,58251.0,58250.0,0.568116]
[1726547358132,0.0024,58251.0,58250.0,0.107316]
[1726547364130,0.19103634,58251.0,58250.0,0.107316]
[1726547364524,0.1,58253.0,58250.0,0.21869896]
[1726547364825,0.185828,58253.0,58252.0,0.0004]
[1726547365137,0.185828,58253.0,58252.0,0.11178296]
[1726547365434,0.185828,58253.0,58252.0,0.21426188]
[1726547365638,0.185828,58253.0,58252.0,0.11178296]
[1726547365836,0.186828,58253.0,58252.0,0.11178296]
[1726547366336,0.186828,58253.0,58252.0,0.21426188]
[1726547366535,0.186828,58253.0,58252.0,0.22326188]
[1726547367038,0.187828,58253.0,58252.0,0.22326188]
[1726547367837,0.002,58253.0,58252.0,0.20661196]
[1726547368039,0.002,58253.0,58252.0,0.33883122]
[1726547368429,0.002,58253.0,58252.0,0.20661196]
[1726547368734,0.002,58253.0,58252.0,0.33893701]
[1726547372630,0.002,58253.0,58252.0,0.095229]
[1726547373628,0.13124162,58253.0,58252.0,0.0094]
[1726547373940,0.28214162,58253.0,58252.0,0.0094]
[1726547378346,0.28213544,58253.0,58252.0,0.0094]
[1726547378846,0.13123544,58253.0,58252.0,0.0094]
[1726547379646,0.087828,58253.0,58252.0,0.25293111]
[1726547381051,0.135928,58253.0,58252.0,0.25293111]
[1726547386556,0.087828,58253.0,58252.0,0.33876011]
[1726547387751,0.13123569,58253.0,58252.0,0.095229]
[1726547392853,0.13137114,58253.0,58252.0,0.095229]
[1726547393343,0.04554314,58253.0,58252.0,0.095229]
[1726547393654,0.002,58253.0,58252.0,0.095229]
[1726547394644,0.085819,58259.0,58252.0,0.4052051]
[1726547394856,0.085819,58259.0,58258.0,0.3612]
[1726547395052,0.085819,58259.0,58258.0,0.60382234]
[1726547395851,0.086819,58259.0,58258.0,0.60382234]
[1726547396254,0.086819,58259.0,58258.0,0.68964234]
[1726547397061,0.087819,58259.0,58258.0,0.68964234]
[1726547397751,0.186819,58259.0,58258.0,0.68964234]
[1726547398055,0.185819,58259.0,58258.0,0.55970731]
[1726547398251,0.185819,58259.0,58258.0,0.66224049]
[1726547398565,0.185819,58259.0,58258.0,0.55964204]
[1726547400858,0.085819,58259.0,58258.0,0.55964204]
[1726547401164,0.085819,58259.0,58258.0,0.5596747]
[1726547401462,0.01024813,58261.0,58260.0,0.085817]
[1726547401650,0.085816,58261.0,58260.0,0.1968717]
[1726547402057,0.085816,58261.0,58260.0,0.29943198]
[1726547402259,0.085816,58261.0,58260.0,0.1968717]
[1726547402659,0.085816,58261.0,58260.0,0.086217]
[1726547403959,0.086816,58261.0,58260.0,0.086217]
[1726547404464,0.086816,58261.0,58260.0,0.15456916]
[1726547404665,0.086816,58261.0,58260.0,0.25456916]
[1726547404866,0.086816,58261.0,58260.0,0.186217]
[1726547405164,0.001,58261.0,58260.0,0.186217]
[1726547405365,0.001,58261.0,58260.0,0.27166978]
[1726547405953,0.001,58261.0,58260.0,0.3820968]
[1726547406567,0.001,58261.0,58260.0,0.27166978]
[1726547407274,0.001,58261.0,58260.0,0.186217]
[1726547408363,0.101,58261.0,58260.0,0.086217]
[1726547408671,0.001,58261.0,58260.0,0.086217]
[1726547408871,0.001,58261.0,58260.0,0.137417]
[1726547409262,0.001,58261.0,58260.0,0.187717]
[1726547410266,0.001,58261.0,58260.0,0.19788376]
[1726547410670,0.12100451,58261.0,58260.0,0.19788376]
[1726547410963,0.16495383,58261.0,58260.0,0.19788376]
[1726547412961,0.04494932,58261.0,58260.0,0.19788376]
[1726547415567,0.04496908,58261.0,58260.0,0.19788376]
[1726547417672,0.001,58261.0,58260.0,0.3082852]
[1726547419070,0.001,58261.0,58260.0,0.439815]
[1726547423273,0.001,58261.0,58260.0,0.389515]
[1726547423480,0.001,58261.0,58260.0,0.338315]
[1726547423677,0.001,58261.0,58260.0,0.2067852]
[1726547424477,0.001,58261.0,58260.0,0.33832615]
[1726547424672,0.0998,58263.0,58262.0,0.085814]
[1726547424879,0.0998,58263.0,58262.0,0.29916405]
[1726547425172,0.1,58264.0,58263.0,0.085813]
[1726547425373,0.1,58264.0,58263.0,0.19661444]
[1726547425675,0.14414326,58264.0,58263.0,0.086213]
[1726547426375,0.04414326,58264.0,58263.0,0.086213]
[1726547427982,0.04814326,58264.0,58263.0,0.086213]
[1726547428481,0.05114326,58264.0,58263.0,0.086213]
[1726547432777,0.007,58264.0,58263.0,0.29900246]
[1726547434475,0.007,58264.0,58263.0,0.19648445]
[1726547435375,0.007,58264.0,58263.0,0.29648445]
[1726547435583,0.007,58264.0,58263.0,0.42791556]
[1726547437186,0.007,58264.0,58263.0,0.19648445]
[1726547439389,0.007,58264.0,58263.0,0.19643216]
[1726547440486,0.007,58264.0,58263.0,0.3277608]
[1726547440686,0.007,58264.0,58263.0,0.29902273]
[1726547440883,0.007,58264.0,58263.0,0.40182273]
[1726547441081,0.007,58264.0,58263.0,1.63115761]
[1726547443287,0.003,58264.0,58263.0,1.63115761]
[1726547443688,0.004,58269.0,58268.0,0.085806]
[1726547443889,0.004,58273.0,58268.0,1.17108492]
[1726547444090,0.0005,58274.0,58273.0,0.185798]
[1726547444297,0.0005,58274.0,58273.0,0.546998]
[1726547444494,0.0005,58274.0,58273.0,0.546598]
[1726547444695,0.0005,58274.0,58273.0,0.61490787]
[1726547446400,0.0165,58274.0,58273.0,0.547598]
[1726547448494,0.06108763,58274.0,58273.0,0.547598]
[1726547448695,0.06102766,58274.0,58273.0,0.547598]
[1726547449794,0.06102766,58274.0,58273.0,0.186798]
[1726547450499,0.0165,58274.0,58273.0,0.186798]
[1726547451601,0.0165,58274.0,58273.0,0.19682694]
[1726547455399,0.11922297,58274.0,58273.0,0.19682694]
[1726547455899,0.0165,58274.0,58273.0,0.26513681]
[1726547457102,0.0165,58274.0,58273.0,0.19682694]
[1726547459604,0.0165,58274.0,58273.0,0.09682694]
[1726547459904,0.0165,58274.0,58273.0,0.19682694]
[1726547460400,0.0165,58274.0,58273.0,0.001]
[1726547460401,0.202297,58274.0,58273.0,0.001]
[1726547462305,0.21236426,58274.0,58273.0,0.001]
[1726547462711,0.25681432,58274.0,58273.0,0.001]
[1726547463408,0.15681432,58274.0,58273.0,0.001]
[1726547469510,0.27681883,58274.0,58273.0,0.001]
[1726547470609,0.15681432,58274.0,58273.0,0.001]
[1726547470805,0.11236426,58274.0,58273.0,0.001]
[1726547471012,0.19816126,58274.0,58273.0,0.001]
[1726547471598,0.11236426,58274.0,58273.0,0.001]
[1726547477919,0.15680803,58274.0,58273.0,0.001]
[1726547485415,0.15681164,58274.0,58273.0,0.001]
[1726547485808,0.11236426,58274.0,58273.0,0.001]
[1726547487412,0.19816126,58274.0,58273.0,0.08638733]
[1726547488016,0.11236426,58274.0,58273.0,0.001]
[1726547488421,0.11236426,58274.0,58273.0,0.08638733]
[1726547489313,0.11236426,58274.0,58273.0,0.11108081]
[1726547491121,0.19816126,58274.0,58273.0,0.19653651]
[1726547491322,0.19816126,58274.0,58273.0,0.1965336]
[1726547491517,0.19816126,58274.0,58273.0,0.11108081]
[1726547491722,0.19816126,58274.0,58273.0,0.19653436]
[1726547491923,0.19816126,58274.0,58273.0,0.11108081]
[1726547492426,0.19816126,58274.0,58273.0,0.19653712]
[1726547494324,0.11236426,58274.0,58273.0,0.19653712]
[1726547494525,0.19816126,58274.0,58273.0,0.19653712]
[1726547499030,0.19816126,58274.0,58273.0,0.19333712]
[1726547500832,0.171596,58273.0,58272.0,0.0004]
[1726547501027,0.33647748,58273.0,58272.0,0.0004]
[1726547501435,0.21643694,58273.0,58272.0,0.0004]
[1726547502030,0.23043694,58273.0,58272.0,0.0014]
[1726547507944,0.23043694,58273.0,58272.0,0.10386513]
[1726547507945,0.185996,58273.0,58272.0,0.10386513]
[1726547508129,0.185996,58273.0,58272.0,0.0014]
[1726547509437,0.185996,58273.0,58272.0,0.10386513]
[1726547513947,0.185996,58273.0,58272.0,0.21380463]
[1726547514749,0.185996,58273.0,58272.0,0.1113395]
[1726547516051,0.28241861,58273.0,58272.0,0.0014]
[1726547517744,0.35078543,58273.0,58272.0,0.0014]
[1726547518650,0.26498743,58273.0,58272.0,0.0014]
[1726547518949,0.1448158,58273.0,58272.0,0.0014]
[1726547521341,0.1448158,58273.0,58272.0,0.1014]
[1726547523045,0.100198,58273.0,58272.0,0.21132633]
[1726547527043,0.100198,58273.0,58272.0,0.21131879]
[1726547530751,0.100198,58273.0,58272.0,0.29711879]
[1726547530950,0.100198,58273.0,58272.0,0.1872]
[1726547531252,0.100198,58273.0,58272.0,0.1014]
[1726547533557,0.0858,58272.0,58271.0,0.01036945]
[1726547533858,0.085801,58271.0,58270.0,0.447842]
[1726547534060,0.086201,58271.0,58270.0,0.446602]
[1726547534952,0.087501,58271.0,58270.0,0.446602]
[1726547535952,0.096501,58271.0,58270.0,0.446602]
[1726547537250,0.096501,58271.0,58270.0,0.45669406]
[1726547537958,0.096501,58271.0,58270.0,0.56664191]
[1726547546365,0.44762901,58280.0,58277.0,0.085792]
[1726547546366,0.00104001,58280.0,58277.0,0.085792]
[1726547546566,0.00104001,58280.0,58279.0,0.085789]
[1726547546767,0.00104001,58280.0,58279.0,0.19653685]
[1726547546966,0.085783,58284.0,58279.0,0.81287615]
[1726547547169,0.085783,58284.0,58283.0,0.0008]
[1726547548162,0.253,58289.0,58283.0,0.0008]
[1726547548163,0.004,58289.0,58283.0,0.0008]
[1726547548364,0.41867,58292.0,58288.0,0.16901748]
[1726547548560,0.05387,58292.0,58291.0,0.0008]
[1726547548772,0.05387,58292.0,58291.0,0.06816776]
[1726547549165,0.05387,58292.0,58291.0,0.15393976]
[1726547549369,0.05387,58292.0,58291.0,0.25393976]
[1726547549370,7e-05,58292.0,58291.0,0.25393976]
[1726547549568,0.01407,58292.0,58291.0,0.185772]
[1726547550069,0.01407,58292.0,58291.0,0.186772]
[1726547550667,7e-05,58292.0,58289.0,0.3608]
[1726547550968,7e-05,58292.0,58291.0,0.002]
[1726547550969,0.01407,58292.0,58291.0,0.002]
[1726547551567,0.01407,58292.0,58291.0,0.1700346]
[1726547551777,0.01307,58292.0,58291.0,0.1690346]
[1726547552076,0.01307,58292.0,58291.0,0.001]
[1726547552267,0.18461,58292.0,58291.0,0.001]
[1726547552463,0.085775,58289.0,58288.0,0.0008]
[1726547552775,0.085775,58289.0,58285.0,0.00257345]
[1726547552776,0.085779,58286.0,58285.0,0.00257345]
[1726547552966,0.546579,58286.0,58285.0,0.00257345]
[1726547553164,0.70214373,58286.0,58285.0,0.00126478]
[1726547553965,0.70314373,58286.0,58285.0,0.00126478]
[1726547555368,0.70214373,58286.0,58285.0,0.00126478]
[1726547555670,0.70914373,58286.0,58285.0,0.00126478]
[1726547555873,0.66204373,58286.0,58285.0,0.00126478]
[1726547556061,0.2451438,58286.0,58285.0,0.00126478]
[1726547556264,0.32907547,58286.0,58285.0,0.00126478]
[1726547556571,0.1922438,58286.0,58285.0,0.10126478]
[1726547557175,0.1932438,58286.0,58285.0,0.10126478]
[1726547558966,0.26114128,58286.0,58285.0,0.10126478]
[1726547559272,0.26114128,58286.0,58285.0,0.18704578]
[1726547559273,0.10755084,58286.0,58285.0,0.18704578]
[1726547559475,0.0556622,58286.0,58285.0,1.30176578]
[1726547560175,0.011,58286.0,58285.0,1.36980038]
[1726547560564,0.011,58286.0,58285.0,0.66980038]
[1726547560769,0.111,58286.0,58285.0,0.05226057]
[1726547560969,0.111,58286.0,58285.0,0.00126478]
[1726547561566,0.096779,58286.0,58285.0,0.00126478]
[1726547564885,0.096779,58286.0,58285.0,0.05226057]
[1726547565968,0.096779,58286.0,58285.0,0.00126478]
[1726547566874,0.342558,58286.0,58285.0,0.00126478]
[1726547567073,0.35287722,58286.0,58285.0,0.00126478]
[1726547567275,0.35287722,58286.0,58279.0,0.008]
[1726547567276,0.171576,58280.0,58279.0,0.008]
[1726547567477,0.085795,58275.0,58273.0,1.16883145]
[1726547567786,0.085801,58271.0,58270.0,0.05099579]
[1726547568170,0.085801,58271.0,58268.0,0.0025743]
[1726547568171,0.085803,58270.0,58268.0,0.0025743]
[1726547568371,0.12959264,58269.0,58268.0,0.0025743]
[1726547569278,0.12460459,58269.0,58268.0,0.0025743]
[1726547569873,0.12560459,58269.0,58268.0,0.0075743]
[1726547570180,0.12660459,58269.0,58268.0,0.0205743]
[1726547570881,0.12560459,58269.0,58268.0,0.0075743]
[1726547571079,0.12660459,58269.0,58268.0,0.0195743]
[1726547574188,0.002,58269.0,58268.0,0.6202203]
[1726547574384,0.002,58269.0,58268.0,0.7228203]
[1726547574878,0.002,58269.0,58268.0,1.3228203]
[1726547575083,0.085795,58276.0,58270.0,0.085802]
[1726547575383,0.085795,58275.0,58274.0,0.44589071]
[1726547575576,0.085795,58275.0,58274.0,0.3608]
[1726547576586,0.001,58275.0,58274.0,0.3608]
[1726547577184,0.086795,58275.0,58274.0,0.3608]
[1726547577483,0.086795,58275.0,58272.0,0.08509071]
[1726547577686,0.086795,58275.0,58274.0,0.006]
[1726547578580,0.086795,58275.0,58274.0,0.166]
[1726547579287,0.085795,58275.0,58274.0,0.25109071]
[1726547579487,0.086795,58275.0,58274.0,0.25109071]
[1726547579792,0.087795,58275.0,58274.0,0.24509071]
[1726547579978,0.087795,58275.0,58274.0,0.24709071]
[1726547580483,0.086795,58275.0,58274.0,0.36275647]
[1726547582084,0.086795,58275.0,58274.0,0.72355647]
[1726547582280,0.086795,58275.0,58274.0,0.6385113]
[1726547582788,0.001,58275.0,58274.0,0.6385113]
[1726547582987,0.086795,58275.0,58274.0,0.6385113]
[1726547583176,0.086795,58275.0,58274.0,0.5288]
[1726547584285,0.086795,58275.0,58274.0,0.59689769]
[1726547585187,0.086795,58275.0,58274.0,0.5288]
[1726547585383,0.001,58275.0,58274.0,0.68269469]
[1726547585777,0.001,58275.0,58274.0,0.614597]
[1726547586186,0.001,58275.0,58274.0,0.68269469]
[1726547586875,0.001,58275.0,58274.0,0.59689769]
[1726547587082,0.001,58275.0,58274.0,0.5288]
[1726547587386,0.001,58275.0,58274.0,0.68269469]
[1726547589498,0.001,58275.0,58274.0,0.614597]
[1726547589994,0.001,58275.0,58274.0,0.554597]
[1726547592489,0.001,58275.0,58274.0,0.454597]
[1726547592688,0.086795,58275.0,58274.0,0.454597]
[1726547593690,0.086795,58275.0,58274.0,0.3688]
[1726547594498,0.1308454,58275.0,58274.0,0.3688]
[1726547594890,0.1308454,58275.0,58274.0,0.008]
[1726547597291,0.25054451,58275.0,58274.0,0.008]
[1726547598202,0.17259,58275.0,58274.0,0.20338468]
[1726547598505,0.69339,58275.0,58274.0,0.008]
[1726547599406,0.779185,58275.0,58274.0,0.008]
[1726547599603,0.171608,58269.0,58268.0,0.08789691]
[1726547599800,0.172008,58269.0,58268.0,0.0025743]
[1726547602402,0.18245188,58269.0,58268.0,0.07078924]
[1726547602892,0.18345188,58269.0,58268.0,0.08078924]
[1726547603092,0.18445188,58269.0,58268.0,0.08078924]
[1726547603706,0.18645188,58269.0,58268.0,0.07078924]
[1726547603904,0.18945188,58269.0,58268.0,0.07078924]
[1726547604402,0.18945188,58269.0,58268.0,0.0025743]
[1726547608804,0.17162,58265.0,58264.0,0.3608]
[1726547609008,0.33202,58265.0,58264.0,0.3608]
[1726547609406,0.33202,58265.0,58259.0,0.3608]
[1726547609407,0.085817,58260.0,58259.0,0.3608]
[1726547609614,0.085826,58254.0,58253.0,0.00257476]
[1726547609915,0.086226,58254.0,58253.0,0.00257476]
[1726547610417,0.084226,58254.0,58253.0,0.00257476]
[1726547610900,0.084226,58254.0,58252.0,0.0508]
[1726547611104,0.0004,58253.0,58252.0,0.0508]
[1726547612215,0.085826,58254.0,58253.0,0.0126]
[1726547612408,0.085826,58254.0,58253.0,0.013]
[1726547613118,0.083826,58254.0,58253.0,0.0004]
[1726547613415,0.45842389,58260.0,58253.0,0.0004]
[1726547613416,0.45802389,58260.0,58253.0,0.0004]
[1726547613614,0.45702389,58260.0,58259.0,0.0004]
[1726547614806,0.09722389,58260.0,58259.0,0.0004]
[1726547615006,0.45802389,58260.0,58259.0,0.0004]
[1726547616211,0.45802389,58260.0,58259.0,0.0514784]
[1726547616212,0.09822389,58260.0,58259.0,0.0514784]
[1726547616417,0.087817,58260.0,58259.0,0.1372974]
[1726547616715,0.087817,58260.0,58259.0,0.086219]
[1726547616913,0.086817,58260.0,58259.0,0.086219]
[1726547617112,0.087817,58260.0,58259.0,0.093219]
[1726547622318,0.087817,58260.0,58259.0,0.0074]
[1726547622921,0.173634,58260.0,58259.0,0.0074]
[1726547623116,0.534434,58260.0,58259.0,0.0074]
[1726547623322,1.049354,58260.0,58259.0,0.0074]
[1726547623624,1.097854,58260.0,58259.0,0.0074]
[1726547624123,1.697854,58260.0,58259.0,0.0074]
[1726547628311,1.697854,58260.0,58259.0,0.05846855]
[1726547628627,1.697854,58260.0,58259.0,0.0074]
[1726547631320,0.534434,58260.0,58259.0,0.0074]
[1726547632418,0.534434,58260.0,58259.0,0.07550453]
[1726547635629,0.534434,58260.0,58259.0,0.0074]
[1726547637527,0.173634,58260.0,58259.0,0.0074]
[1726547638130,0.634434,58260.0,58259.0,0.0074]
[1726547640121,0.273634,58260.0,58259.0,0.0074]
[1726547640430,0.634434,58260.0,58259.0,0.0074]
[1726547641824,0.273634,58260.0,58259.0,0.0074]
[1726547642024,0.634434,58260.0,58259.0,0.0074]
[1726547642833,0.548617,58260.0,58259.0,0.0074]
[1726547643031,0.548617,58260.0,58259.0,0.09272261]
[1726547643220,0.73734614,58260.0,58259.0,0.0074]
[1726547645325,0.634434,58260.0,58259.0,0.0074]
[1726547645527,0.087817,58260.0,58259.0,0.0074]
[1726547645829,0.187817,58260.0,58259.0,0.0074]
[1726547649042,0.002,58260.0,58259.0,0.193219]
[1726547649248,0.002,58260.0,58259.0,0.24449603]
[1726547649733,0.4154,58267.0,58259.0,0.24449603]
[1726547649734,0.089807,58267.0,58259.0,1.22232]
[1726547649940,0.085807,58267.0,58266.0,0.1004]
[1726547650134,0.1,58274.0,58266.0,0.1004]
[1726547650135,0.10291214,58271.0,58266.0,0.1004]
[1726547650330,0.446598,58273.0,58270.0,0.086203]
[1726547650536,0.089793,58277.0,58272.0,0.1004]
[1726547650729,0.1,58279.0,58276.0,0.0004]
[1726547650934,0.185789,58279.0,58278.0,0.0004]
[1726547651138,0.185789,58279.0,58278.0,0.06826862]
[1726547651440,0.085791,58278.0,58277.0,0.06826862]
[1726547651642,0.086191,58278.0,58277.0,0.06826862]
[1726547652433,0.085792,58277.0,58276.0,0.001]
[1726547652634,0.085794,58276.0,58275.0,0.06826862]
[1726547652840,0.246194,58276.0,58275.0,0.06826862]
[1726547653036,0.245794,58276.0,58275.0,0.06826862]
[1726547653432,0.245794,58276.0,58274.0,0.06826862]
[1726547653433,0.085795,58275.0,58274.0,0.06826862]
[1726547653643,0.086195,58275.0,58274.0,0.06826862]
[1726547654445,0.086195,58275.0,58273.0,0.00257408]
[1726547654446,0.086195,58275.0,58273.0,0.0708427]
[1726547654648,0.085797,58274.0,58273.0,0.0708427]
[1726547654844,0.0004,58274.0,58273.0,0.00257408]
[1726547655446,0.0004,58274.0,58273.0,0.07068903]
[1726547655948,0.0074,58274.0,58273.0,0.00357408]
[1726547657535,0.0074,58274.0,58273.0,0.07165555]
[1726547657738,0.0164,58274.0,58273.0,0.07165555]
[1726547658343,0.11231379,58274.0,58272.0,0.05314497]
[1726547658544,0.04478302,58273.0,58272.0,0.05314497]
[1726547659433,0.16444849,58273.0,58272.0,0.05314497]
[1726547659841,0.25024649,58273.0,58272.0,0.05314497]
[1726547660245,0.25824649,58273.0,58272.0,0.05314497]
[1726547660644,0.25824649,58273.0,58272.0,0.05414497]
[1726547661352,0.25824649,58273.0,58272.0,0.05314497]
[1726547661550,0.26394489,58273.0,58272.0,0.05414497]
[1726547661745,0.26394489,58273.0,58272.0,0.41494497]
[1726547663352,0.19541995,58273.0,58272.0,0.3618]
[1726547664958,0.19541995,58273.0,58272.0,0.001]
[1726547665555,0.100198,58273.0,58272.0,0.001]
[1726547671862,0.100198,58273.0,58272.0,0.0868]
[1726547672862,0.100198,58273.0,58272.0,0.09690963]
[1726547678656,0.100198,58273.0,58272.0,0.147969]
[1726547679565,0.100198,58273.0,58272.0,0.1649911]
[1726547680462,0.25395331,58273.0,58272.0,0.09690963]
[1726547680663,0.25395334,58273.0,58272.0,0.09690963]
[1726547681064,0.25466782,58273.0,58272.0,0.09690963]
[1726547681362,0.40842316,58273.0,58272.0,0.09690963]
[1726547681667,0.10979451,58273.0,58272.0,0.09690963]
[1726547686868,0.10979451,58273.0,58272.0,0.45770963]
[1726547687069,0.10979451,58273.0,58272.0,0.09690963]
[1726547687272,0.15167123,58273.0,58272.0,0.45770963]
[1726547687569,0.10979451,58273.0,58272.0,0.09690963]
[1726547687874,0.10979451,58273.0,58272.0,0.45770963]
[1726547688467,0.0144,58273.0,58272.0,0.45770963]